fUSD/lending_fUSD_20251130
["ID","MTS","AMOUNT","RATE_DAILY","PERIOD"]
[395179960,1764521438039,-500.0,0.00014899,2]
[395179962,1764521438048,-500.0,0.00014899,2]
[395179964,1764521438057,-18032.6883,0.000149,2]
[395179965,1764521438067,-1000.0,0.000149,2]
[395179967,1764521438077,-3267.73163121,0.00015033,2]
[395179968,1764521438086,-2311.23131086,0.00015033,2]
[395179969,1764521438096,-500.0,0.00015036,2]
[395179970,1764521438106,-500.0,0.00015036,2]
[395179971,1764521438117,-500.0,0.00015036,2]
[395179972,1764521438128,-500.0,0.00015036,2]
[395179973,1764521438139,-250.0,0.00015068,2]
[395179974,1764521438149,-195.0,0.00015068,2]
[395179975,1764521438159,-1320.49,0.0001516,2]
[395179976,1764521438169,-626.44,0.00015165,2]
[395179977,1764521438178,-500.0,0.00015173,2]
[395179978,1764521438187,-500.0,0.00015173,2]
[395179979,1764521438198,-150.0,0.00015173,2]
[395179980,1764521438208,-500.0,0.00015173,2]
[395179981,1764521438218,-3267.73163121,0.00015267,2]
[395179982,1764521438227,-2311.23131086,0.00015267,2]
[395179983,1764521438237,-150.0,0.00015288,2]
[395179984,1764521438246,-150.0,0.00015288,2]
[395179985,1764521438256,-150.0,0.00015288,2]
[395179986,1764521438269,-150.0,0.00015288,2]
[395179987,1764521438279,-150.0,0.00015288,2]
[395179988,1764521438289,-150.0,0.00015288,2]
[395179989,1764521438299,-150.0,0.00015288,2]
[395179990,1764521438310,-150.0,0.00015288,2]
[395179991,1764521438320,-157.84068384,0.00015288,2]
[395179992,1764521438330,-150.0,0.00015288,2]
[395179993,1764521438340,-150.0,0.00015288,2]
[395179994,1764521438351,-150.0,0.00015288,2]
[395179995,1764521438361,-500.0,0.0001531,2]
[395179996,1764521438370,-461.0,0.0001531,2]
[395179997,1764521438380,-500.0,0.0001531,2]
[395179998,1764521438391,-150.99,0.0001531,2]
[395179999,1764521438400,-9999.99,0.0001531,2]
[395180000,1764521438409,-162.25157654,0.00015325,2]
[395180001,1764521438419,-150.0,0.00015365,2]
[395180002,1764521438428,-151.0,0.00015378,2]
[395180003,1764521438438,-150.0,0.00015388,2]
[395180004,1764521438448,-150.0,0.00015401,2]
[395180005,1764521438458,-150.0,0.00015418,2]
[395180006,1764521438467,-150.0,0.00015429,2]
[395180007,1764521438477,-150.0,0.00015429,2]
[395180008,1764521438487,-626.44,0.00015439,2]
[395180009,1764521438496,-500.0,0.00015439,2]
[395180010,1764521438506,-200.0,0.00015439,2]
[395180011,1764521438516,-200.0,0.00015439,2]
[395180012,1764521438525,-150.0,0.00015442,2]
[395180013,1764521438535,-500.0,0.00015447,2]
[395180014,1764521438544,-500.0,0.00015447,2]
[395180015,1764521438554,-150.0,0.00015458,2]
[395180016,1764521438564,-150.0,0.00015488,2]
[395180017,1764521438573,-3267.73163121,0.000155,2]
[395180018,1764521438583,-2311.23131086,0.000155,2]
[395180019,1764521438592,-150.0,0.00015514,2]
[395180020,1764521438602,-150.0,0.00015519,2]
[395180021,1764521438611,-150.0,0.00015549,2]
[395180022,1764521438621,-150.0,0.00015571,2]
[395180023,1764521438630,-150.0,0.00015571,2]
[395180024,1764521438639,-150.0,0.00015571,2]
[395180025,1764521438649,-500.0,0.00015584,2]
[395180026,1764521438658,-500.0,0.00015584,2]
[395180027,1764521438667,-150.0,0.00015587,2]
[395180028,1764521438676,-150.0,0.00015597,2]
[395180029,1764521438686,-150.0,0.00015627,2]
[395180030,1764521438698,-150.0,0.00015627,2]
[395180031,1764521438707,-150.0,0.00015674,2]
[395180032,1764521438716,-150.0,0.0001568,2]
[395180033,1764521438726,-150.0,0.00015687,2]
[395180034,1764521438735,-150.0,0.00015712,2]
[395180035,1764521438744,-150.0,0.00015712,2]
[395180036,1764521438754,-626.44,0.00015713,2]
[395180037,1764521438763,-562.62199788,0.00015721,2]
[395180038,1764521438773,-364.93375674,0.00015721,2]
[395180039,1764521438782,-3267.73163121,0.00015733,2]
[395180040,1764521438791,-2311.23131086,0.00015733,2]
[395180041,1764521438801,-150.0,0.00015741,2]
[395180042,1764521438810,-150.0,0.00015751,2]
[395180043,1764521438819,-453.7183834,0.00015756,2]
[395180044,1764521438829,-150.0,0.00015787,2]
[395180045,1764521438838,-150.0,0.00015797,2]
[395180046,1764521438847,-150.0,0.0001581,2]
[395180047,1764521438856,-150.0,0.00015828,2]
[395180048,1764521438866,-162.25157654,0.0001585,2]
[395180049,1764521438876,-150.0,0.00015854,2]
[395180050,1764521438886,-150.0,0.00015854,2]
[395180051,1764521438895,-150.0,0.00015854,2]
[395180052,1764521438905,-150.0,0.00015854,2]
[395180053,1764521438915,-150.0,0.00015854,2]
[395180054,1764521438924,-150.0,0.00015854,2]
[395180055,1764521438934,-150.0,0.00015887,2]
[395180056,1764521438944,-675.03589025,0.000159,2]
[395180057,1764521438954,-675.03589023,0.000159,2]
[395180058,1764521438963,-150.0,0.00015905,2]
[395180059,1764521438973,-255.0,0.00015924,2]
[395180060,1764521438982,-151.0,0.00015926,2]
[395180061,1764521438992,-150.0,0.00015941,2]
[395180062,1764521439002,-3267.73163121,0.00015967,2]
[395180063,1764521439012,-2311.23131086,0.00015967,2]
[395180064,1764521439021,-150.0,0.00015967,2]
[395180065,1764521439031,-150.0,0.00015967,2]
[395180066,1764521439041,-500.0,0.00015973,2]
[395180067,1764521439050,-172.14260256,0.00015973,2]
[395180068,1764521439059,-500.0,0.00015973,2]
[395180069,1764521439069,-500.0,0.00015973,2]
[395180070,1764521439079,-500.0,0.00015973,2]
[395180071,1764521439089,-161.07388452,0.00015973,2]
[395180072,1764521439099,-507.35080236,0.00015973,2]
[395180073,1764521439108,-174.27937181,0.00015973,2]
[395180074,1764521439118,-500.0,0.00015973,2]
[395180075,1764521439128,-500.0,0.00015973,2]
[395180076,1764521439138,-201.11548058,0.00015973,2]
[395180077,1764521439147,-500.0,0.00015973,2]
[395180078,1764521439157,-151.85572149,0.00015973,2]
[395180079,1764521439167,-457.90842426,0.00015973,2]
[395180080,1764521439176,-500.0,0.00015973,2]
[395180081,1764521439185,-500.0,0.00015973,2]
[395180082,1764521439195,-500.0,0.00015973,2]
[395180083,1764521439204,-500.0,0.00015973,2]
[395180084,1764521439214,-500.0,0.00015973,2]
[395180085,1764521439223,-500.0,0.00015973,2]
[395180086,1764521439233,-500.0,0.00015973,2]
[395180087,1764521439242,-500.0,0.00015973,2]
[395180088,1764521439252,-150.0,0.00015973,2]
[395180089,1764521439264,-150.0,0.00015973,2]
[395180090,1764521439279,-200.0,0.00015973,2]
[395180091,1764521439289,-150.0,0.00015983,2]
[395180092,1764521439299,-1852.42,0.00015986,2]
[395180093,1764521439310,-626.44,0.00015987,2]
[395180094,1764521439319,-500.0,0.00015987,2]
[395180095,1764521439329,-200.0,0.00015987,2]
[395180096,1764521439339,-200.0,0.00015987,2]
[395180097,1764521439349,-150.0,0.00015987,2]
[395180098,1764521439358,-150.0,0.00015995,2]
[395180100,1764521439367,-150.0,0.00015995,2]
[395180102,1764521439376,-500.0,0.00015999,2]
[395180103,1764521439385,-500.0,0.00015999,2]
[395180104,1764521439394,-500.0,0.00015999,2]
[395180105,1764521439404,-500.0,0.00015999,2]
[395180106,1764521439413,-500.0,0.00015999,2]
[395180108,1764521439422,-500.0,0.00015999,2]
[395180110,1764521439431,-500.0,0.00015999,2]
[395180113,1764521439440,-500.0,0.00015999,2]
[395180124,1764521439450,-500.0,0.00015999,2]
[395180127,1764521439801,-500.0,0.00015999,2]
[395180128,1764521439810,-500.0,0.00015999,2]
[395180130,1764521439820,-500.0,0.00015999,2]
[395180131,1764521439830,-500.0,0.00015999,2]
[395180132,1764521439840,-500.0,0.00015999,2]
[395180133,1764521439850,-500.0,0.00015999,2]
[395180134,1764521439861,-323.68835638,0.00015999,2]
[395180135,1764521439870,-500.0,0.00015999,2]
[395180136,1764521439879,-150.0,0.0001606,2]
[395180137,1764521439889,-150.0,0.00016072,2]
[395180138,1764521439899,-150.0,0.0001608,2]
[395180139,1764521439911,-171.79,0.0001608,2]
[395180140,1764521439921,-150.0,0.00016087,2]
[395180141,1764521439930,-158.66258758,0.0001611,2]
[395180142,1764521439940,-150.0,0.0001611,2]
[395180144,1764521439949,-9999.99,0.00016116,2]
[395180145,1764521439958,-150.0,0.00016137,2]
[395180146,1764521439967,-150.0,0.00016137,2]
[395180147,1764521439976,-150.0,0.00016137,2]
[395180148,1764521439985,-150.0,0.00016137,2]
[395180149,1764521439994,-150.0,0.00016137,2]
[395180150,1764521440004,-150.0,0.00016137,2]
[395180151,1764521440014,-767.61793263,0.00016149,2]
[395180152,1764521440023,-160.0,0.00016149,2]
[395180153,1764521440032,-194.72792766,0.00016149,2]
[395180154,1764521440042,-1000.0,0.00016149,2]
[395180155,1764521440051,-257.91778498,0.00016149,2]
[395180156,1764521440061,-151.0,0.00016149,2]
[395180157,1764521440072,-1000.0,0.00016149,2]
[395180158,1764521440081,-1000.0,0.00016149,2]
[395180159,1764521440091,-1000.0,0.00016149,2]
[395180160,1764521440102,-533.88981491,0.00016149,2]
[395180161,1764521440112,-1000.0,0.00016149,2]
[395180162,1764521440122,-1000.0,0.00016149,2]
[395180163,1764521440131,-151.0,0.00016149,2]
[395180164,1764521440140,-1000.0,0.00016149,2]
[395180165,1764521440150,-151.0,0.00016149,2]
[395180166,1764521440159,-1000.0,0.00016149,2]
[395180167,1764521440168,-151.0,0.00016149,2]
[395180168,1764521440177,-1000.0,0.00016149,2]
[395180170,1764521440187,-151.0,0.00016149,2]
[395180171,1764521440199,-151.0,0.00016149,2]
[395180172,1764521440207,-1000.0,0.00016149,2]
[395180173,1764521440216,-151.0,0.00016149,2]
[395180174,1764521440225,-1000.0,0.00016149,2]
[395180175,1764521440234,-151.0,0.00016149,2]
[395180176,1764521440243,-1000.0,0.00016149,2]
[395180177,1764521440252,-500.0,0.00016149,2]
[395180178,1764521440266,-151.0,0.00016149,2]
[395180179,1764521440275,-1000.0,0.00016149,2]
[395180180,1764521440284,-500.0,0.00016149,2]
[395180181,1764521440293,-151.0,0.00016149,2]
[395180182,1764521440303,-250.0,0.00016149,2]
[395180183,1764521440312,-500.0,0.00016149,2]
[395180184,1764521440321,-151.0,0.00016149,2]
[395180185,1764521440331,-250.0,0.00016149,2]
[395180186,1764521440340,-500.0,0.00016149,2]
[395180187,1764521440349,-250.0,0.00016149,2]
[395180188,1764521440359,-151.0,0.00016149,2]
[395180189,1764521440368,-250.0,0.00016149,2]
[395180190,1764521440378,-500.0,0.00016149,2]
[395180191,1764521440387,-250.0,0.00016149,2]
[395180192,1764521440396,-151.0,0.00016149,2]
[395180193,1764521440406,-250.0,0.00016149,2]
[395180194,1764521440415,-250.0,0.00016149,2]
[395180195,1764521440424,-500.0,0.00016149,2]
[395180196,1764521440432,-151.0,0.00016149,2]
[395180197,1764521440442,-250.0,0.00016149,2]
[395180198,1764521440451,-250.0,0.00016149,2]
[395180199,1764521440460,-500.0,0.00016149,2]
[395180200,1764521440469,-151.0,0.00016149,2]
[395180201,1764521440478,-250.0,0.00016149,2]
[395180202,1764521440487,-500.0,0.00016149,2]
[395180203,1764521440496,-250.0,0.00016149,2]
[395180204,1764521440505,-250.0,0.00016149,2]
[395180205,1764521440514,-500.0,0.00016149,2]
[395180206,1764521440522,-250.0,0.00016149,2]
[395180207,1764521440532,-250.0,0.00016149,2]
[395180208,1764521440541,-500.0,0.00016149,2]
[395180209,1764521440552,-250.0,0.00016149,2]
[395180210,1764521440561,-250.0,0.00016149,2]
[395180211,1764521440570,-500.0,0.00016149,2]
[395180212,1764521440579,-578.20924308,0.00016149,2]
[395180213,1764521440587,-250.0,0.00016149,2]
[395180214,1764521440596,-250.0,0.00016149,2]
[395180215,1764521440605,-500.0,0.00016149,2]
[395180216,1764521440615,-250.0,0.00016149,2]
[395180217,1764521440625,-250.0,0.00016149,2]
[395180218,1764521440634,-500.0,0.00016149,2]
[395180219,1764521440644,-250.0,0.00016149,2]
[395180220,1764521440653,-250.0,0.00016149,2]
[395180221,1764521440662,-250.0,0.00016149,2]
[395180222,1764521440671,-250.0,0.00016149,2]
[395180223,1764521440679,-158.33980161,0.00016149,2]
[395180224,1764521440690,-250.0,0.00016149,2]
[395180225,1764521440700,-250.0,0.00016149,2]
[395180226,1764521440709,-250.0,0.00016149,2]
[395180227,1764521440728,-250.0,0.00016149,2]
[395180228,1764521440737,-500.0,0.00016149,2]
[395180229,1764521440747,-620.0,0.00016149,2]
[395180230,1764521440756,-250.0,0.00016149,2]
[395180231,1764521440766,-500.0,0.00016149,2]
[395180232,1764521440778,-250.0,0.00016149,2]
[395180233,1764521440787,-500.0,0.00016149,2]
[395180234,1764521440796,-250.0,0.00016149,2]
[395180235,1764521440805,-500.0,0.00016149,2]
[395180236,1764521440814,-500.0,0.00016149,2]
[395180237,1764521440824,-250.0,0.00016149,2]
[395180238,1764521440834,-500.0,0.00016149,2]
[395180239,1764521440843,-250.0,0.00016149,2]
[395180240,1764521440853,-500.0,0.00016149,2]
[395180241,1764521440862,-8000.0,0.00016149,2]
[395180242,1764521440871,-1000.0,0.00016149,2]
[395180243,1764521440880,-250.0,0.00016149,2]
[395180244,1764521440888,-500.0,0.00016149,2]
[395180245,1764521440898,-8000.0,0.00016149,2]
[395180246,1764521440907,-1000.0,0.00016149,2]
[395180247,1764521440916,-250.0,0.00016149,2]
[395180248,1764521440925,-500.0,0.00016149,2]
[395180249,1764521440934,-1000.0,0.00016149,2]
[395180250,1764521440943,-250.0,0.00016149,2]
[395180251,1764521440952,-8000.0,0.00016149,2]
[395180252,1764521440961,-500.0,0.00016149,2]
[395180253,1764521440970,-194.72792766,0.00016149,2]
[395180254,1764521440979,-500.0,0.00016149,2]
[395180255,1764521440989,-1000.0,0.00016149,2]
[395180256,1764521440998,-250.0,0.00016149,2]
[395180257,1764521441007,-500.0,0.00016149,2]
[395180258,1764521441016,-500.0,0.00016149,2]
[395180259,1764521441025,-1000.0,0.00016149,2]
[395180260,1764521441034,-250.0,0.00016149,2]
[395180261,1764521441044,-500.0,0.00016149,2]
[395180262,1764521441054,-500.0,0.00016149,2]
[395180263,1764521441064,-250.0,0.00016149,2]
[395180264,1764521441074,-1000.0,0.00016149,2]
[395180265,1764521441083,-500.0,0.00016149,2]
[395180266,1764521441091,-500.0,0.00016149,2]
[395180267,1764521441101,-1000.0,0.00016149,2]
[395180268,1764521441110,-500.0,0.00016149,2]
[395180269,1764521441119,-322.6107,0.00016149,2]
[395180270,1764521441128,-1000.0,0.00016149,2]
[395180271,1764521441138,-500.0,0.00016149,2]
[395180272,1764521441147,-1000.0,0.00016149,2]
[395180273,1764521441156,-500.0,0.00016149,2]
[395180274,1764521441165,-1000.0,0.00016149,2]
[395180275,1764521441175,-500.0,0.00016149,2]
[395180276,1764521441184,-151.0,0.00016149,2]
[395180277,1764521441192,-1000.0,0.00016149,2]
[395180278,1764521441201,-500.0,0.00016149,2]
[395180279,1764521441211,-151.0,0.00016149,2]
[395180280,1764521441220,-1000.0,0.00016149,2]
[395180281,1764521441229,-500.0,0.00016149,2]
[395180282,1764521441238,-151.0,0.00016149,2]
[395180283,1764521441247,-1000.0,0.00016149,2]
[395180284,1764521441256,-151.0,0.00016149,2]
[395180285,1764521441270,-500.0,0.00016149,2]
[395180286,1764521441287,-151.0,0.00016149,2]
[395180287,1764521441295,-500.0,0.00016149,2]
[395180288,1764521441305,-151.0,0.00016149,2]
[395180289,1764521441315,-151.0,0.00016149,2]
[395180290,1764521441323,-500.0,0.00016149,2]
[395180291,1764521441332,-151.0,0.00016149,2]
[395180292,1764521441342,-151.0,0.00016149,2]
[395180293,1764521441352,-151.0,0.00016149,2]
[395180294,1764521441362,-151.0,0.00016149,2]
[395180295,1764521441372,-151.0,0.00016149,2]
[395180296,1764521441382,-151.0,0.00016149,2]
[395180297,1764521441391,-151.0,0.00016149,2]
[395180298,1764521441402,-5000.0,0.00016149,2]
[395180299,1764521441412,-151.0,0.00016149,2]
[395180300,1764521441422,-300.0,0.00016149,2]
[395180301,1764521441432,-2000.0,0.00016151,2]
[395180302,1764521441441,-2000.0,0.00016151,2]
[395180303,1764521441451,-2000.0,0.00016151,2]
[395180304,1764521441459,-2000.0,0.00016151,2]
[395180305,1764521441470,-2000.0,0.00016151,2]
[395180306,1764521441479,-2000.0,0.00016151,2]
[395180307,1764521441489,-2000.0,0.00016151,2]
[395180308,1764521441500,-2000.0,0.00016151,2]
[395180309,1764521441510,-1425.646,0.00016151,2]
[395180310,1764521441519,-150.0,0.00016187,2]
[395180311,1764521441528,-150.0,0.00016194,2]
[395180312,1764521441538,-65744.00109152,0.000162,2]
[395180313,1764521441547,-3267.73163121,0.000162,2]
[395180314,1764521441556,-2311.23131086,0.000162,2]
[395180315,1764521441565,-150.0,0.00016202,2]
[395180316,1764521441574,-150.0,0.00016214,2]
[395180317,1764521441583,-150.0,0.00016247,2]
[395180318,1764521441592,-626.48,0.00016261,2]
[395180319,1764521441602,-150.0,0.00016279,2]
[395180320,1764521441611,-150.0,0.00016279,2]
[395180321,1764521441620,-150.0,0.00016287,2]
[395180322,1764521441629,-150.0,0.00016291,2]
[395180323,1764521441639,-150.0,0.00016307,2]
[395180324,1764521441648,-150.0,0.00016307,2]
[395180325,1764521441657,-150.0,0.00016333,2]
[395180326,1764521441667,-170.0,0.00016364,2]
[395180327,1764521441676,-150.0,0.00016369,2]
[395180328,1764521441686,-162.25157654,0.00016375,2]
[395180329,1764521441695,-150.0,0.00016384,2]
[395180330,1764521441704,-150.0,0.00016387,2]
[395180331,1764521441713,-150.0,0.0001642,2]
[395180332,1764521441724,-150.0,0.0001642,2]
[395180333,1764521441733,-150.0,0.0001642,2]
[395180334,1764521441742,-150.0,0.0001642,2]
[395180335,1764521441751,-150.0,0.0001642,2]
[395180336,1764521441760,-150.0,0.0001642,2]
[395180337,1764521441769,-3267.73163121,0.00016433,2]
[395180338,1764521441779,-2311.23131086,0.00016433,2]
[395180339,1764521441788,-150.0,0.00016438,2]
[395180340,1764521441797,-222.93667362,0.00016438,2]
[395180341,1764521441806,-500.0,0.00016438,2]
[395180342,1764521441815,-163.91,0.0001644,2]
[395180343,1764521441826,-150.0,0.00016446,2]
[395180344,1764521441836,-150.0,0.00016464,2]
[395180345,1764521441845,-151.0,0.00016474,2]
[395180346,1764521441854,-150.0,0.00016477,2]
[395180347,1764521441863,-150.0,0.00016487,2]
[395180348,1764521441872,-505.74952757,0.00016521,2]
[395180349,1764521441881,-500.0,0.00016521,2]
[395180350,1764521441890,-1000.0,0.00016521,2]
[395180351,1764521441899,-1000.0,0.00016521,2]
[395180352,1764521441908,-1000.0,0.00016521,2]
[395180353,1764521441917,-1000.0,0.00016521,2]
[395180354,1764521441926,-1000.0,0.00016521,2]
[395180355,1764521441935,-696.8967906,0.00016521,2]
[395180356,1764521441945,-1000.0,0.00016521,2]
[395180357,1764521441954,-238.48485765,0.00016521,2]
[395180358,1764521441962,-1000.0,0.00016521,2]
[395180359,1764521441971,-404.14806635,0.00016521,2]
[395180360,1764521441980,-1000.0,0.00016521,2]
[395180361,1764521441989,-1000.0,0.00016521,2]
[395180362,1764521441998,-1000.0,0.00016521,2]
[395180363,1764521442007,-200.0,0.00016521,2]
[395180364,1764521442016,-1600.0,0.00016521,2]
[395180365,1764521442025,-150.0,0.00016523,2]
[395180366,1764521442034,-150.0,0.00016533,2]
[395180367,1764521442043,-332.12231322,0.00016535,2]
[395180368,1764521442053,-150.0,0.00016562,2]
[395180369,1764521442063,-150.0,0.00016562,2]
[395180370,1764521442071,-150.0,0.00016575,2]
[395180371,1764521442081,-150.0,0.00016587,2]
[395180372,1764521442090,-150.0,0.00016594,2]
[395180373,1764521442099,-150.0,0.000166,2]
[395180374,1764521442108,-150.0,0.00016647,2]
[395180375,1764521442118,-150.0,0.00016647,2]
[395180376,1764521442127,-3267.73163121,0.00016667,2]
[395180377,1764521442136,-2311.23131086,0.00016667,2]
[395180378,1764521442146,-150.0,0.00016677,2]
[395180379,1764521442155,-150.0,0.00016687,2]
[395180380,1764521442164,-209.13779433,0.00016697,2]
[395180381,1764521442174,-151.0,0.00016697,2]
[395180382,1764521442184,-553.64373807,0.00016697,2]
[395180383,1764521442193,-151.0,0.00016697,2]
[395180384,1764521442203,-642.94,0.00016697,2]
[395180385,1764521442212,-201.93286099,0.00016697,2]
[395180387,1764521442222,-151.0,0.00016697,2]
[395180388,1764521442231,-5000.0,0.00016697,2]
[395180389,1764521442241,-150.0,0.00016703,2]
[395180390,1764521442250,-150.0,0.00016703,2]
[395180391,1764521442259,-150.0,0.00016703,2]
[395180392,1764521442274,-207.95472836,0.00016712,2]
[395180393,1764521442283,-222.75,0.00016712,2]
[395180394,1764521442293,-150.0,0.00016725,2]
[395180395,1764521442302,-500.0,0.00016729,2]
[395180396,1764521442313,-500.0,0.00016729,2]
[395180397,1764521442323,-500.0,0.00016729,2]
[395180398,1764521442333,-510.75391486,0.00016729,2]
[395180399,1764521442344,-500.0,0.00016729,2]
[395180400,1764521442353,-500.0,0.00016729,2]
[395180401,1764521442362,-500.0,0.00016729,2]
[395180402,1764521442371,-500.0,0.00016729,2]
[395180403,1764521442381,-500.0,0.00016729,2]
[395180404,1764521442391,-500.0,0.00016729,2]
[395180405,1764521442401,-500.0,0.00016729,2]
[395180406,1764521442410,-500.0,0.00016729,2]
[395180407,1764521442419,-500.0,0.00016729,2]
[395180408,1764521442428,-500.0,0.00016729,2]
[395180409,1764521442438,-500.0,0.00016729,2]
[395180410,1764521442447,-500.0,0.00016729,2]
[395180411,1764521442456,-412.69296363,0.00016729,2]
[395180412,1764521442465,-540.71917716,0.00016729,2]
[395180413,1764521442474,-500.0,0.00016729,2]
[395180414,1764521442484,-183.05840034,0.00016729,2]
[395180415,1764521442493,-500.0,0.00016729,2]
[395180416,1764521442502,-500.0,0.00016729,2]
[395180417,1764521442511,-500.0,0.00016729,2]
[395180418,1764521442521,-500.0,0.00016729,2]
[395180419,1764521442530,-500.0,0.00016729,2]
[395180420,1764521442539,-500.0,0.00016729,2]
[395180421,1764521442549,-500.0,0.00016729,2]
[395180422,1764521442558,-150.0,0.00016755,2]
[395180423,1764521442567,-150.0,0.0001676,2]
[395180424,1764521442576,-150.0,0.00016786,2]
[395180425,1764521442586,-1235.66439348,0.00016789,2]
[395180426,1764521442595,-151.0,0.00016797,2]
[395180427,1764521442604,-252.76021522,0.000168,2]
[395180428,1764521442613,-5902.17609793,0.000168,2]
[395180429,1764521442623,-1000.0,0.00016805,2]
[395180430,1764521442632,-150.0,0.00016816,2]
[395180431,1764521442641,-150.0,0.00016832,2]
[395180432,1764521442650,-160.11734806,0.00016834,2]
[395180433,1764521442660,-150.0,0.00016845,2]
[395180434,1764521442669,-150.0,0.00016845,2]
[395180435,1764521442679,-150.0,0.00016856,2]
[395180436,1764521442687,-150.0,0.00016873,2]
[395180437,1764521442697,-150.0,0.00016886,2]
[395180438,1764521442707,-164.38079063,0.0001689,2]
[395180439,1764521442716,-14219.80086515,0.000169,3]
[395180440,1764521442725,-3267.73163121,0.000169,2]
[395180441,1764521442735,-201.41866534,0.000169,2]
[395180442,1764521442744,-2311.23131086,0.000169,2]
[395180443,1764521442753,-1246.1397536,0.000169,2]
[395180444,1764521442762,-197.62307661,0.000169,2]
[395180445,1764521442771,-175.78568956,0.000169,2]
[395180446,1764521442781,-162.25157654,0.000169,2]
[395180447,1764521442790,-278.53400054,0.000169,2]
[395180448,1764521442800,-224.18677791,0.000169,2]
[395180449,1764521442814,-500.0,0.000169,2]
[395180450,1764521442823,-500.0,0.000169,2]
[395180451,1764521442833,-500.0,0.000169,2]
[395180452,1764521442842,-500.0,0.000169,2]
[395180454,1764521442852,-500.0,0.000169,2]
[395180456,1764521442862,-500.0,0.000169,2]
[395180457,1764521442871,-500.0,0.000169,2]
[395180458,1764521442882,-500.0,0.000169,2]
[395180459,1764521442892,-500.0,0.000169,2]
[395180460,1764521442901,-500.0,0.000169,2]
[395180461,1764521442912,-500.0,0.000169,2]
[395180462,1764521442922,-500.0,0.000169,2]
[395180463,1764521442932,-500.0,0.000169,2]
[395180464,1764521442942,-500.0,0.000169,2]
[395180465,1764521442952,-500.0,0.000169,2]
[395180466,1764521442961,-500.0,0.000169,2]
[395180467,1764521442970,-197.92719606,0.000169,2]
[395180468,1764521442981,-6654.0,0.000169,2]
[395180469,1764521442990,-150.0,0.00016909,2]
[395180470,1764521442999,-170.0,0.00016943,2]
[395180471,1764521443010,-500.0,0.00016967,2]
[395180472,1764521443020,-509.01062398,0.00016967,2]
[395180473,1764521443030,-500.0,0.00016967,2]
[395180474,1764521443039,-500.0,0.00016967,2]
[395180475,1764521443050,-500.0,0.00016967,2]
[395180476,1764521443059,-222.29257723,0.00016971,2]
[395180477,1764521443069,-500.0,0.00016973,2]
[395180478,1764521443078,-507.2295556,0.00016973,2]
[395180479,1764521443088,-162.090508,0.00016973,2]
[395180480,1764521443098,-500.0,0.00016973,2]
[395180481,1764521443108,-500.0,0.00016973,2]
[395180482,1764521443118,-500.0,0.00016973,2]
[395180483,1764521443128,-500.84139495,0.00016973,2]
[395180484,1764521443139,-500.0,0.00016973,2]
[395180485,1764521443148,-500.0,0.00016973,2]
[395180486,1764521443158,-500.0,0.00016973,2]